bitfinex-derivatives/quotes_ETHF0:USTF0_20250810
["timestamp","ask_amount","ask_price","bid_price","bid_amount"]
[1754820746723,0.2652,4222.3,4222.2,0.90984]
[1754820746926,0.6475,4222.3,4222.2,1.09434]
[1754820747327,0.6475,4222.3,4222.2,1.79164]
[1754820747630,1.2817,4222.6,4222.5,1.79161]
[1754820747830,3.2078,4222.8,4222.5,1.79161]
[1754820748026,0.8994,4222.7,4222.6,1.3191]
[1754820748222,1.2817,4222.7,4222.6,1.3191]
[1754820748426,1.0152,4222.7,4222.6,1.3191]
[1754820748631,1.2817,4223.1,4223.0,0.6214]
[1754820748822,1.2817,4223.1,4223.0,1.3191]
[1754820749632,1.0152,4223.1,4223.0,1.79265]
[1754820749934,1.2817,4223.1,4223.0,1.79265]
[1754820750629,1.0152,4223.1,4223.0,1.79265]
[1754820750833,0.8333,4223.1,4223.0,1.79265]
[1754820751832,0.2652,4223.1,4223.0,1.79265]
[1754820752635,0.6475,4223.1,4223.0,1.79265]
[1754820754431,0.8333,4223.1,4223.0,1.79265]
[1754820754632,1.0152,4223.1,4223.0,1.79265]
[1754820757134,1.279,4223.1,4223.0,1.79265]
[1754820762241,0.2736,4222.5,4222.2,0.47364]
[1754820762429,0.47368,4221.8,4221.4,0.47372]
[1754820762632,1.2713,4221.5,4221.4,1.36012]
[1754820762837,1.2713,4221.5,4221.4,0.8864]
[1754820763640,1.2713,4221.5,4221.4,1.0472]
[1754820763835,1.2713,4221.5,4221.4,1.3042]
[1754820767939,1.165,4222.0,4221.9,0.4462]
[1754820768541,1.5449,4222.0,4221.9,0.4462]
[1754820769738,1.5449,4222.0,4221.9,0.6316]
[1754820770047,1.2713,4222.0,4221.9,1.3042]
[1754820771949,0.6433,4222.0,4221.9,1.3042]
[1754820772656,3.8511,4222.3,4222.2,1.3042]
[1754820772844,0.6433,4222.3,4222.2,1.3042]
[1754820773145,0.6433,4222.7,4222.6,0.91199]
[1754820773353,1.2713,4222.7,4222.6,1.77779]
[1754820775854,1.0075,4222.7,4222.6,1.77779]
[1754820776052,0.8289,4222.7,4222.6,4.98559]
[1754820776262,0.2634,4222.7,4222.6,4.98559]
[1754820776463,0.8914,4223.0,4222.9,1.09736]
[1754820776660,1.0075,4223.0,4222.9,1.77776]
[1754820776855,0.8914,4223.4,4223.3,0.3668]
[1754820777159,1.5449,4223.4,4223.3,0.8864]
[1754820777654,1.5449,4223.4,4223.1,0.47353]
[1754820777862,3.2078,4223.6,4222.6,3.2078]
[1754820777863,1.5449,4222.7,4222.6,3.2078]
[1754820778559,1.5449,4222.7,4222.6,3.4726]
[1754820779161,1.5449,4222.7,4222.6,3.654]
[1754820780262,1.2713,4222.7,4222.6,4.0942]
[1754820780454,1.2713,4222.7,4222.6,4.512]
[1754820780960,0.3799,4222.9,4222.8,0.6238]
[1754820781164,0.6433,4222.9,4222.8,1.3042]
[1754820781659,0.3799,4223.2,4222.9,0.47356]
[1754820781858,0.8289,4223.2,4223.1,1.3042]
[1754820782051,1.2713,4223.2,4223.1,1.3042]
[1754820784269,1.2713,4223.2,4223.1,0.8864]
[1754820784463,1.5449,4223.2,4223.1,0.6316]
[1754820784966,1.2713,4223.2,4223.1,0.8864]
[1754820785367,1.5497,4223.2,4223.1,0.8864]
[1754820786165,1.5497,4223.2,4223.1,0.6316]
[1754820787363,4.39153,4223.6,4222.7,0.263]
[1754820787663,1.5312,4222.7,4222.6,4.28359]
[1754820787868,1.5312,4222.7,4222.6,4.54069]
[1754820788267,1.5312,4222.7,4222.6,4.70139]
[1754820788469,1.2528,4222.7,4222.6,4.70139]
[1754820790569,1.5312,4222.7,4222.6,4.54069]
[1754820791064,1.2528,4222.7,4222.6,4.70139]
[1754820791266,1.2528,4222.7,4222.6,4.95849]
[1754820791467,0.9941,4222.7,4222.6,4.95849]
[1754820792670,1.2528,4222.7,4222.6,4.95849]
[1754820794861,0.9941,4222.7,4222.6,4.95849]
[1754820795062,0.8257,4222.7,4222.6,4.95849]
[1754820795267,0.47352,4223.3,4223.0,0.47354]
[1754820795477,1.2528,4223.1,4223.0,1.48764]
[1754820795967,0.9941,4223.1,4223.0,1.75064]
[1754820796174,1.2528,4223.1,4223.0,1.75064]
[1754820797072,1.2528,4223.1,4223.0,1.2771]
[1754820797273,1.5312,4223.1,4223.0,0.8593]
[1754820797773,1.2528,4223.1,4223.0,1.49375]
[1754820798673,1.2528,4223.1,4223.0,1.0202]
[1754820800373,0.9941,4223.1,4223.0,1.2777]
[1754820800871,1.2528,4223.1,4223.0,1.2777]
[1754820812186,1.5312,4223.1,4223.0,1.2777]
[1754820812387,1.5312,4223.1,4223.0,1.0202]
[1754820812584,1.5312,4223.1,4223.0,1.49375]
[1754820813191,1.5312,4223.1,4223.0,1.0202]
[1754820817596,1.2528,4223.1,4223.0,1.0202]
[1754820817894,1.2528,4223.1,4223.0,2.96816311]
[1754820818297,1.2528,4223.1,4223.0,1.2743]
[1754820822300,1.2528,4223.1,4223.0,2.96816311]
[1754820822999,1.2528,4223.1,4223.0,1.2743]
[1754820823305,1.2528,4223.1,4223.0,2.96816311]
[1754820823698,1.2528,4223.1,4223.0,1.2743]
[1754820824200,1.5188,4223.1,4223.0,1.0202]
[1754820824598,1.5188,4223.1,4223.0,0.4323]
[1754820824902,1.2645,4222.9,4222.8,1.69386311]
[1754820825101,1.5305,4222.9,4222.8,1.94726311]
[1754820826297,0.6097,4222.9,4222.7,1.69386311]
[1754820826602,1.5305,4222.8,4222.7,1.0352]
[1754820826990,1.5305,4222.8,4222.7,2.73936934]
[1754820829802,1.2645,4222.8,4222.7,2.99346934]
[1754820831106,1.2645,4222.8,4222.7,1.2893]
[1754820831507,0.6478,4223.0,4222.9,1.2893]
[1754820831701,0.6478,4223.0,4222.9,2.99312202]
[1754820832300,1.2645,4223.0,4222.9,2.99312202]
[1754820833101,1.2645,4223.0,4222.9,3.46668202]
[1754820835611,1.2645,4223.0,4222.9,2.99312202]
[1754820836109,1.73805,4223.0,4222.9,2.99312202]
[1754820836615,2.00405,4223.0,4222.9,2.99312202]
[1754820836816,2.00405,4223.0,4222.9,3.46668202]
[1754820837013,1.2645,4223.0,4222.9,3.46668202]
[1754820839413,1.2645,4223.0,4222.9,2.99312202]
[1754820840322,1.2645,4223.0,4222.9,1.2893]
[1754820843225,1.2645,4223.0,4222.9,2.99384085]
[1754820846824,1.2645,4223.0,4222.9,1.2893]
[1754820847427,3.6112,4223.4,4222.9,2.47319]
[1754820847720,3.6112,4223.4,4222.8,1.70454085]
[1754820847721,3.8206,4223.4,4223.3,1.77352]
[1754820848314,4.746,4223.4,4223.3,1.77352]
[1754820850127,4.4812,4223.4,4223.3,1.77352]
[1754820850926,4.746,4223.4,4223.3,1.77352]
[1754820851424,4.746,4223.4,4223.3,1.51782]
[1754820853826,4.4812,4223.4,4223.3,1.51782]
[1754820854029,4.4812,4223.4,4223.3,1.77352]
[1754820854224,4.746,4223.4,4223.3,1.77352]
[1754820854424,4.746,4223.4,4223.3,1.51782]
[1754820855827,5.28672993,4223.4,4223.3,1.51782]
[1754820856931,4.746,4223.4,4223.3,1.51782]
[1754820858025,4.4812,4223.4,4223.3,1.51782]
[1754820858529,4.4812,4223.4,4223.3,1.77352]
[1754820858929,4.4812,4223.4,4223.3,1.3]
[1754820863630,4.746,4223.4,4223.3,1.77352]
[1754820863828,4.4812,4223.4,4223.3,1.3]
[1754820864228,4.95471,4223.4,4223.3,1.3]
[1754820864534,5.76043699,4223.4,4223.3,1.0443]
[1754820864734,5.21951,4223.4,4223.3,1.0443]
[1754820865537,4.746,4223.4,4223.3,1.0443]
[1754820866639,4.746,4223.4,4223.3,1.51782]
[1754820866835,4.746,4223.4,4223.3,1.0443]
[1754820867737,5.28692624,4223.4,4223.3,1.0443]
[1754820868240,4.746,4223.4,4223.3,1.0443]
[1754820870744,5.28692497,4223.4,4223.3,1.0443]
[1754820872241,4.746,4223.4,4223.3,1.0443]
[1754820875445,4.4812,4223.4,4223.3,1.3]
[1754820877745,4.74,4223.4,4223.3,1.3]
[1754820878045,4.74,4223.4,4223.3,1.0443]
[1754820878646,4.74,4223.4,4222.5,3.2078]
[1754820878647,1.35298,4222.7,4222.6,1.70454085]
[1754820878941,1.35298,4222.7,4222.6,0.7077]
[1754820878942,5.22448,4222.7,4222.6,0.7077]
[1754820879552,5.22448,4222.7,4222.6,0.893]
[1754820879741,5.22448,4222.7,4222.6,1.0539]
[1754820880045,5.22448,4222.7,4222.6,0.893]
[1754820880942,5.22448,4222.7,4222.6,0.2577]
[1754820881142,1.5431,4222.4,4222.3,0.2577]
[1754820881449,0.6206,4222.0,4221.8,1.70454085]
[1754820881747,1.5431,4221.7,4221.6,1.70454085]
[1754820881941,1.5431,4221.7,4221.6,2.14754085]
[1754820882248,1.5431,4221.7,4221.6,0.7077]
[1754820883136,0.6206,4221.3,4221.2,0.1853]
[1754820883337,0.2708,4221.3,4221.2,1.78505]
[1754820883741,0.6554,4221.3,4221.2,1.78505]
[1754820884050,0.6554,4221.3,4221.2,1.3113]
[1754820888148,0.9345,4221.3,4221.2,1.3113]
[1754820890352,1.104,4221.3,4221.2,1.3113]
[1754820891754,0.8249,4221.3,4221.2,1.3113]
[1754820892254,1.104,4221.3,4221.2,1.3113]
[1754820893751,1.2843,4221.3,4221.2,1.3113]
[1754820894957,1.5431,4221.3,4221.2,0.6283]
[1754820895154,1.5431,4221.3,4221.2,0.893]
[1754820895352,1.5431,4221.3,4221.2,1.0539]
[1754820896754,1.5431,4221.3,4221.2,0.7892]
[1754820896956,1.5431,4221.3,4221.2,1.0539]
[1754820897549,4.7509,4221.3,4221.2,1.0539]
[1754820897752,1.2843,4220.7,4220.6,0.893]
[1754820897945,1.2843,4220.7,4220.3,1.86544085]
[1754820897946,0.73262,4220.6,4220.3,0.73155]
[1754820898149,1.5431,4220.4,4220.3,1.0539]
[1754820898750,1.5431,4220.4,4220.3,0.7077]
[1754820898949,1.5431,4220.4,4220.3,1.0539]
[1754820899453,1.5431,4220.4,4220.3,0.443]
[1754820899855,1.5431,4220.4,4220.3,0.2577]
[1754820900454,1.0945,4220.0,4219.7,0.5224]
[1754820900648,1.0945,4220.0,4219.7,0.2577]
[1754820900649,1.5431,4219.8,4219.7,0.2577]
[1754820901159,1.5431,4219.5,4219.4,0.7077]
[1754820901363,4.7509,4219.5,4219.4,0.443]
[1754820901558,4.7509,4219.5,4219.4,0.893]
[1754820901755,1.0052,4219.8,4219.7,0.628]
[1754820901957,1.5431,4219.8,4219.7,0.893]
[1754820902157,1.5431,4219.8,4219.7,0.443]
[1754820902457,1.5431,4219.8,4219.7,0.2577]
[1754820904856,1.5431,4219.8,4219.7,0.443]
[1754820905059,3.8632,4220.0,4219.9,0.4427]
[1754820905256,0.2708,4220.0,4219.9,1.3113]
[1754820905658,1.3149,4220.4,4220.3,0.6047]
[1754820905859,3.2078,4220.5,4220.3,1.07855]
[1754820906060,3.6202,4220.5,4220.3,1.07855]
[1754820906458,0.6878,4220.5,4220.4,1.2855]
[1754820906664,3.2078,4221.0,4220.8,0.348]
[1754820906861,0.6878,4221.0,4220.9,1.2855]
[1754820907066,0.2754,4221.0,4220.9,1.2855]
[1754820907368,1.3149,4220.8,4220.7,1.2855]
[1754820907563,1.3149,4220.8,4220.7,0.8676]
[1754820907755,0.47379,4220.9,4220.5,0.2569]
[1754820907756,0.6336,4220.6,4220.5,0.2569]
[1754820907961,0.9052,4220.6,4220.5,0.6878]
[1754820908266,0.9052,4220.6,4220.5,0.8676]
[1754820908463,0.9052,4220.6,4220.5,1.0288]
[1754820908662,1.3149,4220.6,4220.5,1.2855]
[1754820908858,0.865,4220.9,4220.8,1.2855]
[1754820909063,1.5865,4220.9,4220.8,0.8676]
[1754820909559,1.5865,4220.9,4220.8,0.6049]
[1754820909968,0.1772,4220.7,4220.6,1.0288]
[1754820910165,1.3149,4220.7,4220.6,1.0288]
[1754820910869,0.865,4220.7,4220.6,1.2855]
[1754820911064,1.3149,4220.7,4220.6,1.2855]
[1754820912362,0.47375,4221.2,4220.7,0.47381]
[1754820912566,1.1741,4221.2,4221.1,0.8676]
[1754820912759,1.1741,4220.6,4220.5,0.8676]
[1754820912965,1.5865,4220.6,4220.5,0.8676]
[1754820913159,1.5865,4220.6,4220.5,1.0288]
[1754820913364,1.3149,4220.6,4220.5,1.0288]
[1754820914167,1.5865,4220.6,4220.5,0.8676]
[1754820915568,0.2754,4220.0,4219.9,0.8616]
[1754820915769,1.3149,4220.0,4219.9,1.0228]
[1754820916178,0.865,4220.0,4219.9,1.2855]
[1754820918276,1.1339,4220.0,4219.9,1.2855]
[1754820919080,1.3149,4220.0,4219.9,1.2855]
[1754820919479,4.3417,4220.4,4220.3,0.6047]
[1754820919683,4.5227,4220.4,4220.3,1.2855]
[1754820920375,4.7943,4220.4,4220.3,1.0288]
[1754820920679,3.2078,4220.4,4220.1,0.2569]
[1754820920880,1.78878,4220.1,4220.0,0.6107]
[1754820921075,2.06038,4220.1,4220.0,0.6107]
[1754820921275,2.06038,4220.1,4220.0,0.8676]
[1754820921779,1.3149,4220.1,4220.0,0.8676]
[1754820921982,1.3149,4220.1,4220.0,1.2855]
[1754820922377,3.4794,4220.4,4219.2,1.70454085]
[1754820922378,0.181,4219.8,4219.7,0.348]
[1754820922580,1.10751,4219.8,4219.7,1.0288]
[1754820922980,2.06041,4219.8,4219.7,0.8676]
[1754820923682,2.06041,4219.8,4219.7,1.0288]
[1754820923983,1.3149,4219.8,4219.7,1.2855]
[1754820924284,1.5865,4219.8,4219.7,0.8676]
[1754820925280,0.47392,4219.7,4219.4,0.47395]
[1754820925480,1.3149,4219.5,4219.4,1.16175]
[1754820925683,1.3149,4219.5,4219.4,1.50275]
[1754820925983,1.3149,4219.5,4219.4,1.75945]
[1754820926184,0.6878,4219.5,4219.4,1.75945]
[1754820926381,0.865,4219.5,4219.4,1.75945]
[1754820926580,1.3149,4219.5,4219.4,1.75945]
[1754820927486,1.3149,4219.5,4219.4,1.2855]
[1754820928078,0.2716,4219.4,4219.2,0.2569]
[1754820928286,0.6336,4219.3,4218.9,0.2569]
[1754820928582,1.1339,4219.6,4219.5,0.8674]
[1754820928788,0.2754,4219.6,4219.5,1.0283]
[1754820929177,3.2078,4219.8,4219.6,0.47393]
[1754820929381,4.5227,4219.8,4219.7,1.2852]
[1754820929582,4.5227,4219.8,4219.7,0.6049]
[1754820929782,1.5865,4219.5,4219.4,0.4309]
[1754820930081,0.6336,4218.9,4218.8,0.64222]
[1754820930278,0.9052,4218.9,4218.8,1.34162]
[1754820930485,1.5865,4218.9,4218.8,1.50252]
[1754820930690,1.5865,4218.9,4218.8,1.0285]
[1754820931583,1.3149,4218.9,4218.8,1.2852]
[1754820932683,1.3149,4218.9,4218.8,0.8676]
[1754820932889,1.046,4218.8,4218.7,0.82203]
[1754820933091,1.5865,4218.8,4218.7,0.8676]
[1754820933294,1.5865,4218.8,4218.7,0.6049]
[1754820933995,1.3149,4218.4,4218.3,0.6049]
[1754820934189,0.6336,4217.9,4217.8,0.6049]
[1754820934491,0.47411,4218.1,4217.4,1.79117344]
[1754820934492,1.3149,4217.5,4217.4,1.79117344]
[1754820934885,1.3149,4217.5,4217.4,2.04787344]
[1754820935088,1.3149,4217.5,4217.4,2.30477344]
[1754820935280,0.6639,4217.9,4217.4,1.01957344]
[1754820935486,0.8313,4218.2,4218.1,1.07839]
[1754820935885,0.66,4218.5,4218.4,1.07837]
[1754820936086,0.66,4218.5,4218.4,1.76257]
[1754820936484,1.5533,4218.5,4218.4,0.442]
[1754820936886,1.5533,4218.5,4218.4,0.8683]
[1754820937288,1.5533,4218.5,4216.7,2.12004381]
[1754820937289,0.80532,4217.0,4216.9,1.69705223]
[1754820937482,0.3456,4216.7,4216.4,1.2789]
[1754820937686,3.2078,4216.5,4216.4,1.2789]
[1754820937889,3.2078,4216.5,4216.4,2.98344085]
[1754820938082,3.2078,4217.0,4216.9,0.6091]
[1754820938291,0.1598,4217.4,4216.9,1.2789]
[1754820938486,1.41617,4217.5,4217.4,1.2789]
[1754820938682,0.91082,4217.0,4216.9,1.0224]
[1754820938889,4.46422,4217.0,4216.9,1.0224]
[1754820939189,4.46422,4217.0,4216.9,1.2885]
[1754820939486,4.1498,4217.0,4216.9,1.545]
[1754820940189,4.1498,4217.0,4216.9,1.1317]
[1754820940595,3.2078,4217.0,4216.9,3.72377085]
[1754820940791,3.2078,4217.0,4216.9,3.24954085]
[1754820940993,3.2078,4217.0,4216.9,3.72377085]
[1754820941491,3.2078,4217.0,4216.9,3.24954085]
[1754820943289,2.9274,4217.0,4216.9,3.24954085]
[1754820943487,2.5068,4217.0,4216.9,3.24954085]
[1754820943688,3.6822,4217.0,4216.5,0.47427]
[1754820943893,1.0156,4216.6,4216.5,1.545]
[1754820944097,1.0492,4216.6,4216.3,3.05290604]
[1754820944392,1.1755,4216.3,4216.2,0.6091]
[1754820944694,0.3556,4216.1,4216.0,0.2661]
[1754820944896,1.1755,4216.1,4216.0,0.8683]
[1754820945090,1.1755,4216.1,4215.7,0.88766]
[1754820945091,0.6209,4216.1,4215.7,0.88766]
[1754820945398,0.8443,4215.9,4215.8,1.545]
[1754820946794,0.47436,4215.8,4215.3,1.15381]
[1754820946992,1.0156,4215.5,4215.4,1.545]
[1754820947297,1.1755,4215.5,4215.4,1.545]
[1754820947800,3.2078,4216.0,4214.8,0.6794]
[1754820947999,4.85764,4216.0,4215.9,1.545]
[1754820948292,4.0521,4216.0,4215.9,1.545]
[1754820948491,3.4731,4216.0,4215.9,1.545]
[1754820948689,3.2078,4216.0,4215.9,3.24954085]
[1754820949299,4.0521,4216.0,4215.9,3.24954085]
[1754820949490,4.2234,4216.0,4215.9,3.24954085]
[1754820949686,4.3833,4216.0,4215.9,3.24954085]
[1754820949894,4.6518,4216.0,4215.9,2.83624085]
[1754820950198,4.6518,4216.0,4215.9,2.57284085]
[1754820950499,3.2078,4216.0,4215.7,0.47437]
[1754820950694,3.4731,4216.0,4215.9,1.1317]
[1754820950898,4.2234,4216.0,4215.9,1.545]
[1754820951094,4.3833,4216.0,4215.9,1.545]
[1754820951295,4.6518,4216.0,4215.9,1.70454085]
[1754820951492,0.3556,4215.7,4215.6,0.3457]
[1754820951695,3.2078,4216.0,4215.7,0.4133]
[1754820951901,4.30304,4216.0,4215.9,1.1317]
[1754820952097,4.46294,4216.0,4215.9,1.545]
[1754820952302,5.12614,4216.0,4215.9,1.545]
[1754820952797,5.12614,4216.0,4214.7,3.2078]
[1754820952798,1.48998,4215.7,4215.6,0.3457]
[1754820952997,1.1755,4215.7,4215.6,0.8683]
[1754820953202,1.1755,4215.7,4215.6,1.1317]
[1754820953701,1.444,4215.7,4215.6,1.1317]
[1754820954306,0.1843,4215.9,4215.8,1.1057]
[1754820954503,3.2078,4216.0,4215.8,0.8752]
[1754820954800,3.4731,4216.0,4215.9,1.545]
[1754820955006,3.6574,4216.0,4215.9,1.545]
[1754820955203,4.0521,4216.0,4215.9,1.545]
[1754820955411,4.3833,4216.0,4215.9,1.545]
[1754820956001,4.6518,4216.0,4215.9,1.545]
[1754820956508,4.6518,4216.0,4215.9,1.1317]
[1754820956703,0.6209,4215.7,4215.6,0.2661]
[1754820956898,1.1755,4215.7,4215.6,0.6985]
[1754820957204,1.444,4215.7,4215.6,0.2661]
[1754820957605,1.444,4215.7,4215.6,0.8683]
[1754820958108,0.47435,4215.9,4215.6,1.545]
[1754820958302,1.91465,4215.9,4215.8,0.5226]
[1754820958496,1.64618,4215.6,4215.5,0.1759]
[1754820958703,1.91468,4215.6,4215.5,0.6985]
[1754820959006,1.91468,4215.6,4215.5,1.1317]
[1754820959303,1.91468,4215.6,4215.5,0.8683]
[1754820959706,1.91468,4215.6,4215.5,1.1317]
[1754820959909,0.47436,4215.8,4215.5,3.24954085]
[1754820960209,1.13436,4215.8,4215.7,1.545]
[1754820960411,1.31866,4215.8,4215.7,1.545]
[1754820960908,1.64616,4215.8,4215.7,1.545]
[1754820961104,1.64616,4215.8,4215.7,0.2661]
[1754820961412,1.64621,4215.4,4215.3,1.545]
[1754820962199,0.3947,4215.4,4215.3,1.70454085]
[1754820962410,1.09537,4214.9,4214.8,1.1317]
[1754820962708,4.69787,4214.9,4214.8,1.545]
[1754820963406,4.6481,4214.9,4214.8,1.545]
[1754820963606,4.0521,4214.9,4214.8,1.545]
[1754820963801,3.6574,4214.9,4214.8,1.545]
[1754820964005,4.2234,4214.9,4214.8,1.545]
[1754820964406,4.3796,4214.9,4214.8,1.545]
[1754820965304,4.3796,4214.9,4214.2,3.2078]
[1754820965305,0.47451,4214.5,4214.2,3.2078]
[1754820965505,0.4301,4213.9,4213.8,1.77708]
[1754820965702,4.3582,4213.9,4213.8,1.5683]
[1754820965906,4.0168,4213.9,4213.8,1.5683]
[1754820966101,4.2019,4213.9,4213.8,0.2658]
[1754820966306,3.2078,4213.9,4213.8,3.27284085]
[1754820966709,0.809,4214.4,4214.3,0.6155]
[1754820967008,0.9941,4214.4,4214.3,1.5683]
[1754820967207,1.1504,4214.4,4214.3,1.5683]
[1754820967413,2.01287151,4214.4,4214.3,1.5683]
[1754820967915,0.60987151,4214.4,4214.3,3.27284085]
[1754820968110,3.2078,4214.5,4214.3,2.32004085]
[1754820968304,3.2078,4214.5,4214.4,1.5683]
[1754820969209,4.2019,4214.5,4214.4,1.5683]
[1754820969519,1.403,4214.4,4214.3,0.5388]
[1754820969711,2.01287151,4214.4,4214.3,0.7177]
[1754820969910,2.01287151,4214.4,4214.3,1.1543]
[1754820970105,0.60987151,4214.4,4214.3,3.27284085]
[1754820970310,3.2078,4214.5,4214.4,1.09002]
[1754820970516,3.2078,4214.5,4214.4,2.04282]
[1754820970712,3.4676,4214.5,4214.4,2.04282]
[1754820970907,4.0168,4214.5,4214.4,2.04282]
[1754820971515,3.2078,4214.5,4214.4,3.74736085]
[1754820971708,3.2078,4215.0,4214.9,2.04276]
[1754820972612,3.2078,4215.0,4214.9,3.74730085]
[1754820972806,4.0168,4215.0,4214.9,3.74730085]
[1754820973015,4.3582,4215.0,4214.9,3.74730085]
[1754820973214,4.96829074,4215.0,4214.9,3.74730085]
[1754820973410,3.81848991,4215.0,4214.9,3.74730085]
[1754820973616,3.2078,4215.0,4214.9,3.74730085]
[1754820973811,3.2078,4215.0,4214.9,6.88368406]
[1754820974207,2.61171991,4216.1,4216.0,0.8885]
[1754820974406,5.20883,4216.1,4216.0,0.8885]
[1754820974619,5.34518991,4216.1,4216.0,0.3555]
[1754820974818,4.43368991,4216.1,4216.0,3.27284085]
[1754820975006,4.24858991,4216.1,4216.0,3.27284085]
[1754820975211,0.61068991,4216.3,4216.2,0.6155]
[1754820975408,0.4301,4216.4,4216.3,1.0898]
[1754820975715,0.4301,4216.4,4216.3,2.0426]
[1754820976420,0.61068991,4216.7,4216.6,1.3025]
[1754820976613,3.2078,4216.8,4216.6,1.3025]
[1754820976614,3.2078,4216.8,4216.7,2.04256]
[1754820977219,3.2078,4216.8,4216.7,3.74710085]
[1754820979722,0.9941,4217.2,4217.1,2.0425]
[1754820980419,0.9941,4217.2,4217.1,1.5683]
[1754820980620,1.2467,4217.2,4217.1,1.5683]
[1754820981825,1.5267,4217.2,4217.1,1.5683]
[1754820982021,1.2467,4217.2,4217.1,1.5683]
[1754820983318,1.5267,4217.2,4217.1,1.5683]
[1754820984726,0.4301,4217.2,4217.1,1.5683]
[1754820984928,4.103,4217.5,4217.4,0.6155]
[1754820985227,3.2078,4217.5,4217.4,1.5683]
[1754820985731,4.0756,4218.0,4217.9,1.1543]
[1754820985919,4.7345,4218.0,4217.9,2.04242]
[1754820987131,5.34334096,4218.0,4217.9,2.04242]
[1754820987430,4.7345,4218.0,4217.9,2.04242]
[1754820987622,3.2078,4218.0,4217.9,2.04242]
[1754820987826,4.7345,4218.0,4217.9,3.74696085]
[1754820989023,4.7345,4218.0,4217.9,3.27284085]
[1754820989230,4.7345,4218.0,4217.0,3.2078]
[1754820989426,0.2598,4217.6,4217.5,2.04246]
[1754820989617,1.089,4217.9,4217.8,1.5683]
[1754820989923,3.2078,4218.5,4217.4,3.2078]
[1754820990125,1.5267,4218.4,4218.3,1.5683]
[1754820990719,0.4301,4218.4,4218.3,3.27284085]
[1754820991122,3.2078,4218.5,4218.3,3.27284085]
[1754820991322,3.2078,4218.5,4218.4,0.9528]
[1754820991524,1.2741,4218.4,4217.9,0.5388]
[1754820991825,1.5267,4217.9,4217.8,1.70454085]
[1754820992130,1.5267,4217.9,4217.1,22.074]
[1754820992131,0.4301,4217.1,4217.0,1.1543]
[1754820992427,0.4301,4217.1,4217.0,4.59655816]
[1754820992629,0.6152,4217.1,4217.0,6.77531901]
[1754820992931,1.5267,4217.1,4217.0,3.27284085]
[1754820998432,0.96,4217.9,4217.8,0.1794]
[1754820998639,1.5502,4217.9,4217.8,1.5843]
[1754820998837,1.5502,4217.9,4217.8,0.6316]
[1754820999133,1.5502,4217.9,4217.8,0.3624]
[1754821000037,0.6099,4217.6,4217.5,1.1357]
[1754821000232,0.6099,4217.6,4217.5,3.28884085]
[1754821000233,1.5502,4217.6,4217.5,3.28884085]
[1754821001138,1.5502,4217.6,4217.5,2.87434085]
[1754821001335,1.5502,4217.6,4217.5,2.59864085]
[1754821001931,1.5502,4217.6,4217.5,1.70454085]
[1754821002125,0.6099,4217.3,4217.2,1.0526]
[1754821002330,1.5502,4217.3,4217.2,3.02634085]
[1754821002637,1.5502,4217.3,4217.2,2.06694085]
[1754821003331,1.5502,4217.3,4217.2,2.33614085]
[1754821005437,1.5502,4217.3,4217.2,2.61184085]
[1754821005638,1.5502,4217.3,4217.2,3.02634085]
[1754821006140,2.02439,4217.3,4217.2,3.02634085]
[1754821007036,2.02439,4217.3,4217.2,2.06694085]
[1754821008540,0.47415,4217.7,4217.6,0.3624]
[1754821008741,1.76275,4217.7,4217.6,1.5843]
[1754821008941,1.5502,4217.7,4217.6,1.5843]
[1754821009849,1.2886,4217.7,4217.6,1.5843]
[1754821010047,1.5502,4217.7,4217.6,1.5843]
[1754821012250,1.5502,4217.7,4217.6,0.183]
[1754821012636,1.5502,4217.7,4217.6,0.6381]
[1754821012848,1.5502,4217.7,4217.6,1.5843]
[1754821016151,0.4384,4217.7,4217.6,1.5843]
[1754821016353,1.5502,4217.7,4217.6,1.5843]
[1754821016753,1.2886,4217.7,4217.6,1.5843]
[1754821016953,1.0198,4217.7,4217.6,1.5843]
[1754821017256,1.2886,4217.7,4217.6,2.05846]
[1754821017656,0.8483,4217.7,4217.6,2.05846]
[1754821017851,0.6128151,4217.9,4217.7,0.47414]
[1754821018058,3.8206151,4218.0,4217.9,2.05842]
[1754821018254,3.2078,4218.0,4217.9,2.05842]
[1754821021056,3.2078,4218.0,4217.9,3.76296085]
[1754821021358,4.5865,4218.5,4218.4,2.05837]
[1754821021551,5.19960073,4218.5,4218.4,2.05837]
[1754821021752,3.6462,4218.5,4218.4,2.05837]
[1754821023062,3.2078,4218.5,4218.4,3.76291085]
[1754821023960,1.1171,4218.8,4218.7,1.09893]
[1754821024157,1.1171,4218.8,4218.7,2.05833]
[1754821024554,0.8483,4218.8,4218.7,3.76287085]
[1754821024752,4.758,4219.2,4219.1,2.05829]
[1754821026060,3.8177,4219.2,4219.1,2.05829]
[1754821026261,1.519,4219.2,4219.1,2.05829]
[1754821026859,1.007,4219.2,4219.1,2.05829]
[1754821027057,1.007,4219.2,4219.1,3.76283085]
[1754821027858,1.43510961,4219.7,4219.6,0.47393]
[1754821028063,1.5084,4219.7,4219.6,0.4575]
[1754821028261,0.9091,4219.6,4219.5,0.47394]
[1754821028469,1.5084,4219.6,4219.5,1.78054]
[1754821028966,1.5084,4219.6,4219.5,2.04104]
[1754821029359,1.5084,4219.6,4219.5,1.5671]
[1754821033561,1.0816,4219.6,4219.5,1.2887]
[1754821033866,1.5084,4219.6,4219.5,1.5671]